Workbook

Sheet 1
A1: 附件
A2: 2023年度东莞市倍增企业经营管理者素质提升资助使用计划表
A3: 序号 | B3: 公司名称 | C3: 统一社会信用代码 | D3: 所属街镇 | E3: 纳入类别 | F3: 经营管理者姓名 | G3: 个人补助 金额 （万元） | H3: 合计拟补助金额 （万元）
A4: =COUNT($A$3:A3)+1 -> 1 | B4: 东莞市腾信精密制造股份有限公司 | C4: 914419005744947162 | D4: 茶山 | E4: 名誉试点 | F4: 林利 | G4: 1.00 | H4: 1.00
A5: =COUNT($A$3:A4)+1 -> 2 | B5: 广东智子智能技术有限公司 | C5: 91441900MA4UWJ155G | D5: 茶山 | E5: 试点 | F5: 郑春阳 | G5: 3.00 | H5: 5.28
F6: 许晓军 | G6: 1.00
F7: 李林波 | G7: 0.60
F8: 罗耀 | G8: 0.68
A9: =COUNT($A$3:A8)+1 -> 3 | B9: 东莞市深鹏电子有限公司 | C9: 91441900597429300C | D9: 常平 | E9: 名誉试点 | F9: 程祖意 | G9: 0.44 | H9: =SUM(G9:G13) -> 1.18
F10: 王守元 | G10: 0.13
F11: 彭苏梅 | G11: 0.17
F12: 何娟 | G12: 0.13
F13: 柴海涛 | G13: 0.31
A14: =COUNT($A$3:A12)+1 -> 4 | B14: 联基精密电子股份有限公司 | C14: 91441900MA55G6FA1J | D14: 常平 | E14: 试点 | F14: 敖琪 | G14: 1.00 | H14: 2.00
F15: 徐丹 | G15: 1.00
A16: =COUNT($A$3:A15)+1 -> 5 | B16: 东莞市信翰精密工业有限公司 | C16: 914419007929957115 | D16: 常平 | E16: 试点 | F16: 余利花 | G16: 0.27 | H16: =SUM(G16:G17) -> 0.93
C17: 914419007929957115 | D17: 常平 | F17: 何利梅 | G17: 0.66
A18: =COUNT($A$3:A17)+1 -> 6 | B18: 东莞市鹏锦机械科技有限公司 | C18: 91441900581435458K | D18: 常平 | E18: 试点 | F18: 赵霞 | G18: 0.70 | H18: =SUM(G18:G22) -> 3.65
F19: 李家玲 | G19: 1.00
F20: 郑亚萍 | G20: 0.65
F21: 库千意 | G21: 0.30
F22: 程香 | G22: 1.00
A23: =COUNT($A$3:A22)+1 -> 7 | B23: 东莞群翰电子有限公司 | C23: 91441900747071392T | D23: 常平 | E23: 协同倍增 | F23: 张小艳 | G23: 0.31 | H23: 0.66
F24: 张剑涛 | G24: 0.35
A25: =COUNT($A$3:A24)+1 -> 8 | B25: 东莞市昂图智能科技有限公司 | C25: 91441900MA4UX8M891 | D25: 常平 | E25: 协同倍增 | F25: 邹梅 | G25: 0.48 | H25: 0.48
A26: =COUNT($A$3:A25)+1 -> 9 | B26: 广东优科检测认证有限公司 | C26: 91441900663328074H | D26: 常平 | E26: 2020年省“专精特新” | F26: 马啟田 | G26: 0.23 | H26: 2.90
F27: 李留妹 | G27: 0.98
F28: 张宏波 | G28: 1.00
F29: 杨澜 | G29: 0.50
F30: 黄青 | G30: 0.19
A31: =COUNT($A$3:A30)+1 -> 10 | B31: 东莞市龙谊电子科技有限公司 | C31: 91441900582948933Y | D31: 常平 | E31: 试点 | F31: 曹梦东 | G31: 0.15 | H31: 0.71
F32: 张荣新 | G32: 0.29
F33: 康田田 | G33: 0.27
A34: =COUNT($A$3:A33)+1 -> 11 | B34: 东莞成谦音响科技有限公司 | C34: 91441900791188811X | D34: 长安 | E34: 试点 | F34: 邓念俊 | G34: 0.38 | H34: =SUM(G34:G38) -> 1.57
F35: 张海燕 | G35: 0.38
F36: 农春刘 | G36: 0.33
F37: 凡华 | G37: 0.35
F38: 张燕仲 | G38: 0.13
A39: =COUNT($A$3:A37)+1 -> 12 | B39: 东莞市硅翔绝缘材料有限公司 | C39: 91441900675216555L | D39: 长安 | E39: 名誉试点 | F39: 肖玉平 | G39: 1.00 | H39: =SUM(G39:G40) -> 2
C40: 91441900675216555L | D40: 长安 | F40: 胡燕 | G40: 1.00
A41: =COUNT($A$3:A40)+1 -> 13 | B41: 广东日信高精密科技股份有限公司 | C41: 91441900091796509X | D41: 长安 | E41: 试点 | F41: 温小华 | G41: 0.23 | H41: =SUM(G41:G47) -> 1.91
F42: 曾信雄 | G42: 0.24
F43: 曾信明 | G43: 0.24
F44: 周莉 | G44: 0.24
F45: 王春杰 | G45: 0.48
F46: 关经荣 | G46: 0.25
F47: 刘俊丽 | G47: 0.23
A48: =COUNT($A$3:A55)+1 -> 15 | B48: 广东蓝光智能科技有限公司 | C48: 91441900776243798G | D48: 长安 | E48: 试点 | F48: 兰正英 | G48: 1.00 | H48: 2.99
F49: 杨显凤 | G49: 0.35
F50: 苟明琪 | G50: 0.41
F51: 郑玉成 | G51: 0.75
F52: 艾华良 | G52: 0.20
F53: 肖鹏 | G53: 0.28
A54: =COUNT($A$3:A47)+1 -> 14 | B54: 东莞市三创智能卡技术有限公司 | C54: 91441900MA4UH82RXP | D54: 长安 | E54: 试点 | F54: 唐玉兰 | G54: 0.95 | H54: 1.95
F55: 邓兰 | G55: 1.00
A56: =COUNT($A$3:A53)+1 -> 16 | B56: 东莞鸿图精密压铸有限公司 | C56: 91441900738579960E | D56: 长安 | E56: 试点 | F56: 徐冬森 | G56: 3.00 | H56: 3
A57: =COUNT($A$3:A56)+1 -> 17 | B57: 东莞市沃通实业有限公司 | C57: 91441900MA4WE30U35 | D57: 长安 | E57: 协同倍增 | F57: 张伟 | G57: 0.15 | H57: 0.30
F58: 夏玲平 | G58: 0.15
A59: =COUNT($A$3:A58)+1 -> 18 | B59: 东莞市鸿馥生物科技有限公司 | C59: 91441900MA51BPAP3K | D59: 大朗 | E59: 试点 | F59: 周静 | G59: 0.50 | H59: 2.21
F60: 常冬冬 | G60: 0.14
F61: 张波 | G61: 0.27
F62: 罗芳 | G62: 0.10
F63: 赵永杰 | G63: 0.43
F64: 成千叶 | G64: 0.35
F65: 凡艳玲 | G65: 0.20
F66: 陈炜杰 | G66: 0.10
F67: 熊缨 | G67: 0.12
A68: =COUNT($A$3:A67)+1 -> 19 | B68: 东莞市典威电子有限公司 | C68: 91441900068488356J | D68: 大朗 | E68: 试点 | F68: 王华 | G68: 1.00 | H68: 1.00
A69: =COUNT($A$3:A68)+1 -> 20 | B69: 伟创力电源（东莞）有限公司 | C69: 91441900570141796D | D69: 大岭山 | E69: 名誉试点 | F69: 黄兴 | G69: 0.30 | H69: =SUM(G69:G76) -> 2.44
F70: 余春兰 | G70: 0.30
F71: 陈洁玲 | G71: 1.00
F72: 刘全芳 | G72: 0.09
F73: 邓应清 | G73: 0.15
F74: 杨朝香 | G74: 0.15
F75: 郭东平 | G75: 0.30
F76: 韦敏娜 | G76: 0.15
A77: =COUNT($A$3:A76)+1 -> 21 | B77: 广东汇兴精工智造股份有限公司 | C77: 91441900796299756C | D77: 大岭山 | E77: 试点 | F77: 钟辉 | G77: 1.35 | H77: 1.35
A78: =COUNT($A$3:A77)+1 -> 22 | B78: 东莞市勤本电子科技有限公司 | C78: 91441900MA51NGFK5L | D78: 道滘 | E78: 试点 | F78: 吴媛 | G78: 0.23 | H78: 1.65
F79: 陈华丽 | G79: 0.18
F80: 杨桃红 | G80: 0.14
F81: 张新桂 | G81: 0.42
F82: 杨洲 | G82: 0.57
F83: 叶嫦艳 | G83: 0.11
A84: =COUNT($A$3:A83)+1 -> 23 | B84: 广东艾斯瑞仪器科技有限公司 | C84: 91441900MA4W2PE871 | D84: 道滘 | E84: 协同倍增 | F84: 钱美琪 | G84: 0.47 | H84: 0.47
A85: =COUNT($A$3:A84)+1 -> 24 | B85: 广东安拓普聚合物科技股份有限公司 | C85: 91441900668156806G | D85: 东城 | E85: 名誉试点 | F85: 江庆礼 | G85: 0.07 | H85: 0.55
F86: 庞辉 | G86: 0.18
F87: 冯惠平 | G87: 0.30
A88: =COUNT($A$3:A87)+1 -> 25 | B88: 东莞市中麒光电技术有限公司 | C88: 91441900MA51UBWH3Q | D88: 东城 | E88: 试点 | F88: 王小鑫 | G88: 1.00 | H88: 2.00
F89: 邓广柱 | G89: 1.00
A90: =COUNT($A$3:A89)+1 -> 26 | B90: 东莞市鼎通精密科技股份有限公司 | C90: 914419007510880152 | D90: 东城 | E90: 试点 | F90: 罗宏霞 | G90: 0.44 | H90: 1.83
F91: 班定琦 | G91: 0.21
F92: 刘伟 | G92: 0.32
F93: 侯晓娜 | G93: 0.21
F94: 梁岸华 | G94: 0.21
F95: 王海峰 | G95: 0.44
A96: =COUNT($A$3:A95)+1 -> 27 | B96: 东莞朗勤电子科技有限公司 | C96: 91441900MA513AHW0B | D96: 东坑 | E96: 名誉试点 | F96: 梁学敏 | G96: 0.13 | H96: =SUM(G96:G98) -> 1.53
F97: 陈雄 | G97: 0.40
F98: 杨智斌 | G98: 1.00
A99: =COUNT($A$3:A98)+1 -> 28 | B99: 迈思普电子股份有限公司 | C99: 9144190035462913XH | D99: 东坑 | E99: 试点 | F99: 石丽艳 | G99: 0.30 | H99: =SUM(G99:G106) -> 2.27
F100: 董文飞 | G100: 0.13
F101: 宋淑丽 | G101: 0.12
F102: 李燕芳 | G102: 0.15
F103: 陈晶晶 | G103: 0.11
F104: 蒋春林 | G104: 1.00
F105: 刘伟伟 | G105: 0.30
F106: 谭欣 | G106: 0.16
A107: =COUNT($A$3:A106)+1 -> 29 | B107: 楚天龙股份有限公司 | C107: 914419007436747351 | D107: 凤岗 | E107: 试点 | F107: 李兆辉 | G107: 0.46 | H107: =SUM(G107:G114) -> 3.35
F108: 许芷珊 | G108: 0.16
F109: 屈海静 | G109: 0.20
F110: 刘希良 | G110: 1.00
F111: 陈勇剑 | G111: 0.23
F112: 孔朋 | G112: 0.30
F113: 欧阳仲斌 | G113: 0.50
F114: 刘俊磊 | G114: 0.50
A115: =COUNT($A$3:A114)+1 -> 30 | B115: 广东中鼎科技发展有限公司 | C115: 91441900557341208A | D115: 高埗 | E115: 试点 | F115: 孙月祥 | G115: 0.14 | H115: 0.40
F116: 韩根 | G116: 0.14
F117: 杨芹 | G117: 0.12
A118: =COUNT($A$3:A117)+1 -> 31 | B118: 东莞维科电池有限公司 | C118: 91441900MA518J0M2A | D118: 横沥 | E118: 名誉试点 | F118: 林柳丽 | G118: 0.15 | H118: =SUM(G118:G125) -> 1.54
F119: 陈燕华 | G119: 0.15
F120: 邹滨 | G120: 0.12
F121: 王义坤 | G121: 0.21
F122: 秦智勇 | G122: 0.15
F123: 何韩露 | G123: 0.14
F124: 胡锦锋 | G124: 0.34
F125: 冯龙渊 | G125: 0.28
A126: =COUNT($A$3:A125)+1 -> 32 | B126: 东莞市诺正电子有限公司 | C126: 914419007894391248 | D126: 横沥 | E126: 试点 | F126: 王欢 | G126: 0.42 | H126: 2.86
F127: 余文腊 | G127: 0.80
F128: 陈蓉 | G128: 0.38
F129: 高小娟 | G129: 0.47
F130: 张新科 | G130: 0.40
F131: 刘玉婷 | G131: 0.39
A132: =COUNT($A$3:A131)+1 -> 33 | B132: 东莞市富明钮扣有限公司 | C132: 91441900684493167E | D132: 横沥 | E132: 试点 | F132: 方朝晖 | G132: 1.00 | H132: 1.00
A133: =COUNT($A$3:A132)+1 -> 34 | B133: 广东达源设备科技有限公司 | C133: 91441900MA5123KH27 | D133: 洪梅 | E133: 试点 | F133: 袁传政 | G133: 0.14 | H133: 1.28
F134: 唐玲 | G134: 1.00
F135: 齐兴成 | G135: 0.14
A136: =COUNT($A$3:A135)+1 -> 35 | B136: 东莞市拓邦电子有限公司 | C136: 91441900MA539MEA9N | D136: 厚街 | E136: 协同倍增 | F136: 张培萱 | G136: 0.10 | H136: 0.2
C137: 91441900MA539MEA9N | D137: 厚街 | F137: 苏琼玲 | G137: 0.10
A138: =COUNT($A$3:A137)+1 -> 36 | B138: 东莞市安域实业有限公司 | C138: 91441900MA4UYXXH6X | D138: 厚街 | E138: 名誉试点 | F138: 张德孝 | G138: 0.26 | H138: 0.52
F139: 陶建发 | G139: 0.26
A140: =COUNT($A$3:A139)+1 -> 37 | B140: 东莞厚街科劲机电设备有限公司 | C140: 9144190075286870XE | D140: 厚街 | E140: 试点 | F140: 杨旺平 | G140: 1.00 | H140: 3.80
F141: 刘振雄 | G141: 0.20
F142: 孙晓平 | G142: 1.00
F143: 方锦涛 | G143: 0.40
F144: 沈伟飞 | G144: 0.20
F145: 覃宏前 | G145: 1.00
A146: =COUNT($A$3:A145)+1 -> 38 | B146: 东莞市中质电子科技有限公司 | C146: 91441900MA4UJBYT97 | D146: 厚街 | E146: 试点 | F146: 刘孟 | G146: 0.50 | H146: 0.65
F147: 程超 | G147: 0.15
A148: =COUNT($A$3:A147)+1 -> 39 | B148: 东莞士格电子集团有限公司 | C148: 91441900084474800X | D148: 厚街 | E148: 名誉试点 | F148: 周均 | G148: 2.79 | H148: 5.58
F149: 周小媛 | G149: 2.79
A150: =COUNT($A$3:A149)+1 -> 40 | B150: 兴科电子（东莞）有限公司 | C150: 91441900776902415R | D150: 虎门 | E150: 试点 | F150: 袁英 | G150: 1.00 | H150: 1.00
A151: =COUNT($A$3:A150)+1 -> 41 | B151: 东莞市茂伟电子有限公司 | C151: 91441900MA4UHP6P5E | D151: 虎门 | E151: 协同倍增 | F151: 王玉华 | G151: 0.15 | H151: 0.15
A152: =COUNT($A$3:A151)+1 -> 42 | B152: 东莞市斯波阿斯体育用品科技有限公司 | C152: 91441900MA4UPAAY73 | D152: 虎门 | E152: 2022年省“专精特新” | F152: 周勉 | G152: 0.89 | H152: 1.77
F153: 郭小年 | G153: 0.44
F154: 罗娟 | G154: 0.44
A155: =COUNT($A$3:A154)+1 -> 43 | B155: 东莞领杰金属精密制造科技有限公司 | C155: 91441900MA4ULXJN54 | D155: 黄江 | E155: 名誉试点 | F155: 李斌斌 | G155: 0.39 | H155: 2.78
F156: 李金华 | G156: 0.13
F157: 周亮 | G157: 0.12
F158: 蒋祥云 | G158: 0.31
F159: 蒋成武 | G159: 0.84
F160: 夏涛 | G160: 0.15
F161: 陈志平 | G161: 0.84
A162: =COUNT($A$3:A161)+1 -> 44 | B162: 东莞领益精密制造科技有限公司 | C162: 9144190032167468XW | D162: 黄江 | E162: 试点 | F162: 王亚蒙 | G162: 1.00 | H162: =SUM(G162:G167) -> 3.58
F163: 和卓波 | G163: 0.14
F164: 邵芳 | G164: 0.25
F165: 张正升 | G165: 0.80
F166: 刘军 | G166: 0.80
F167: 韩启从 | G167: 0.59
A168: =COUNT($A$3:A167)+1 -> 45 | B168: 东莞盛涛科技有限公司 | C168: 91441900MA57387A7N | D168: 黄江 | E168: 协同倍增 | F168: 刘春华 | G168: 0.84 | H168: 1.68
F169: 刘飞 | G169: 0.84
A170: =COUNT($A$3:A169)+1 -> 46 | B170: 广东国泰达鸣精密机件有限公司 | C170: 91441900094340451T | D170: 黄江 | E170: 试点 | F170: 单嘉威 | G170: 0.57 | H170: 0.86
F171: 卢熙海 | G171: 0.15
F172: 罗凤霞 | G172: 0.14
A173: =COUNT($A$3:A172)+1 -> 47 | B173: 东莞市琅菱机械有限公司 | C173: 91441900680604616G | D173: 寮步 | E173: 名誉试点 | F173: 吕定国 | G173: 1.00 | H173: 1.15
F174: 卢菊平 | G174: 0.15
A175: =COUNT($A$3:A174)+1 -> 48 | B175: 广东力科新能源有限公司 | C175: 91441900351945911X | D175: 寮步 | E175: 试点 | F175: 覃水英 | G175: 0.08 | H175: 1.12
F176: 温明秀 | G176: 0.15
F177: 黄柏森 | G177: 0.13
F178: 黄郴林 | G178: 0.08
F179: 钟大成 | G179: 0.50
F180: 谢清文 | G180: 0.18
A181: =COUNT($A$3:A180)+1 -> 49 | B181: 东莞康视达自动化科技有限公司 | C181: 91441900797773851T | D181: 寮步 | E181: 试点 | F181: 李敏 | G181: 1.00 | H181: 1.28
F182: 邓敏 | G182: 0.12
F183: 张挺 | G183: 0.16
A184: =COUNT($A$3:A183)+1 -> 50 | B184: 雷茨智能装备（广东）有限公司 | C184: 91441900586366121L | D184: 寮步 | E184: 试点 | F184: 龙姣 | G184: 1.00 | H184: 2
C185: 91441900586366121L | D185: 寮步 | E185: 试点 | F185: 王亮博 | G185: 1.00
A186: =COUNT($A$3:A185)+1 -> 51 | B186: 中粮（东莞）粮油工业有限公司 | C186: 91441900310560070G | D186: 麻涌 | E186: 名誉试点 | F186: 左成 | G186: 0.33 | H186: 0.58
F187: 姚永佳 | G187: 0.25
A188: =COUNT($A$3:A187)+1 -> 52 | B188: 东莞市华鑫泰金属科技有限公司 | C188: 91441900MA53G81P9J | D188: 麻涌 | E188: 2022年省“专精特新” | F188: 张峻 | G188: 0.14 | H188: 0.14
A189: =COUNT($A$3:A188)+1 -> 53 | B189: 广东美宜佳便利店有限公司 | C189: 91441900MA4X2TQBX9 | D189: 南城 | E189: 名誉试点 | F189: 胡家豪 | G189: 1.00 | H189: 2.51
F190: 凌飞健 | G190: 0.11
F191: 刘霞 | G191: 0.30
F192: 叶艳芳 | G192: 0.10
F193: 刘娜 | G193: 1.00
A194: =COUNT($A$3:A193)+1 -> 54 | B194: 广东优信无限网络股份有限公司 | C194: 9144190073500861X5 | D194: 南城 | E194: 试点 | F194: 何明珠 | G194: 0.75 | H194: 2.11
F195: 余秋香 | G195: 0.22
F196: 徐铮 | G196: 1.00
F197: 刘军豪 | G197: 0.14
A198: =COUNT($A$3:A197)+1 -> 55 | B198: 广东唯一网络科技有限公司 | C198: 914419007946478682 | D198: 南城 | E198: 试点 | F198: 李飘芳 | G198: 0.45 | H198: 0.97
F199: 林彩云 | G199: 0.13
F200: 伍艳娟 | G200: 0.12
... 198 more rows

Sheet Sheet2
A2: 1 | B2: 东莞市腾信精密制造股份有限公司 | C2: 1
A3: 2 | B3: 广东智子智能技术有限公司 | C3: 5.28
A4: 3 | B4: 东莞市深鹏电子有限公司 | C4: 0.87
A5: 4 | B5: 联基精密电子股份有限公司 | C5: 2
A6: 5 | B6: 东莞市信翰精密工业有限公司 | C6: 0.93
A7: 6 | B7: 东莞市鹏锦机械科技有限公司 | C7: 3.65
A8: 7 | B8: 东莞群翰电子有限公司 | C8: 0.66
A9: 8 | B9: 东莞市昂图智能科技有限公司 | C9: 0.48
A10: 9 | B10: 广东优科检测认证有限公司 | C10: 2.9
A11: 10 | B11: 东莞市龙谊电子科技有限公司 | C11: 0.71
A12: 11 | B12: 东莞成谦音响科技有限公司 | C12: 1.44
A13: 12 | B13: 东莞市硅翔绝缘材料有限公司 | C13: 2
A14: 13 | B14: 广东日信高精密科技股份有限公司 | C14: 1.91
A15: 14 | B15: 东莞市三创智能卡技术有限公司 | C15: 1.95
A16: 15 | B16: 广东蓝光智能科技有限公司 | C16: 2.99
A17: 16 | B17: 东莞鸿图精密压铸有限公司 | C17: 3
A18: 17 | B18: 东莞市沃通实业有限公司 | C18: 0.3
A19: 18 | B19: 东莞市鸿馥生物科技有限公司 | C19: 2.21
A20: 19 | B20: 东莞市典威电子有限公司 | C20: 1
A21: 20 | B21: 伟创力电源（东莞）有限公司 | C21: 2.44
A22: 21 | B22: 广东汇兴精工智造股份有限公司 | C22: 1.35
A23: 22 | B23: 东莞市勤本电子科技有限公司 | C23: 1.65
A24: 23 | B24: 广东艾斯瑞仪器科技有限公司 | C24: 0.47
A25: 24 | B25: 广东安拓普聚合物科技股份有限公司 | C25: 0.55
A26: 25 | B26: 东莞市中麒光电技术有限公司 | C26: 2
A27: 26 | B27: 东莞市鼎通精密科技股份有限公司 | C27: 1.83
A28: 27 | B28: 东莞朗勤电子科技有限公司 | C28: 1.53
A29: 28 | B29: 迈思普电子股份有限公司 | C29: 2.27
A30: 29 | B30: 楚天龙股份有限公司 | C30: 3.35
A31: 30 | B31: 广东中鼎科技发展有限公司 | C31: 0.4
A32: 31 | B32: 东莞维科电池有限公司 | C32: 1.54
A33: 32 | B33: 东莞市诺正电子有限公司 | C33: 2.86
A34: 33 | B34: 东莞市富明钮扣有限公司 | C34: 1
A35: 34 | B35: 广东达源设备科技有限公司 | C35: 1.28
A36: 35 | B36: 东莞市拓邦电子有限公司 | C36: 0.2
A37: 36 | B37: 东莞市安域实业有限公司 | C37: 0.52
A38: 37 | B38: 东莞厚街科劲机电设备有限公司 | C38: 3.8
A39: 38 | B39: 东莞市中质电子科技有限公司 | C39: 0.65
A40: 39 | B40: 东莞士格电子集团有限公司 | C40: 5.58
A41: 40 | B41: 兴科电子（东莞）有限公司 | C41: 1
A42: 41 | B42: 东莞市茂伟电子有限公司 | C42: 0.15
A43: 42 | B43: 东莞市斯波阿斯体育用品科技有限公司 | C43: 1.77
A44: 43 | B44: 东莞领杰金属精密制造科技有限公司 | C44: 2.78
A45: 44 | B45: 东莞领益精密制造科技有限公司 | C45: 3.58
A46: 45 | B46: 东莞盛涛科技有限公司 | C46: 1.68
A47: 46 | B47: 广东国泰达鸣精密机件有限公司 | C47: 0.86
A48: 47 | B48: 东莞市琅菱机械有限公司 | C48: 1.15
A49: 48 | B49: 广东力科新能源有限公司 | C49: 1.12
A50: 49 | B50: 东莞康视达自动化科技有限公司 | C50: 1.28
A51: 50 | B51: 雷茨智能装备（广东）有限公司 | C51: 2
A52: 51 | B52: 中粮（东莞）粮油工业有限公司 | C52: 0.58
A53: 52 | B53: 东莞市华鑫泰金属科技有限公司 | C53: 0.14
A54: 53 | B54: 广东美宜佳便利店有限公司 | C54: 2.51
A55: 54 | B55: 广东优信无限网络股份有限公司 | C55: 2.11
A56: 55 | B56: 广东唯一网络科技有限公司 | C56: 0.97
A57: 56 | B57: 广东天福连锁商业集团有限公司 | C57: 0.77
A58: 57 | B58: 广东通莞科技股份有限公司 | C58: 2.48
A59: 58 | B59: 东莞市智赢智能装备有限公司 | C59: 0.51
A60: 59 | B60: 东莞市彩洋信息科技有限公司 | C60: 2.16
A61: 60 | B61: 东莞市利致软件科技有限公司 | C61: 1.02
A62: 61 | B62: 东莞市胜恩五金制品有限公司 | C62: 1
A63: 62 | B63: 宏工科技股份有限公司 | C63: 1.78
A64: 63 | B64: 东莞中兴瑞电子科技有限公司 | C64: 1.14
A65: 64 | B65: 东莞市凯成环保科技有限公司 | C65: 1
A66: 65 | B66: 广东三津食品有限公司 | C66: 2.32
A67: 66 | B67: 东莞市冠荣商标织造有限公司 | C67: 1
A68: 67 | B68: 广东恒威通电力科技有限公司 | C68: 3
A69: 68 | B69: 东莞立讯精密工业有限公司 | C69: 1.47
A70: 69 | B70: 东莞宜安科技股份有限公司 | C70: 0.57
A71: 70 | B71: 广东普赛达密封粘胶有限公司 | C71: 0.44
A72: 71 | B72: 东莞立德精密工业有限公司 | C72: 1.87
A73: 72 | B73: 广东意杰科技有限公司 | C73: 0.68
A74: 73 | B74: 广东杰思通讯股份有限公司 | C74: 1
A75: 74 | B75: 广东锦坤实业有限公司 | C75: 0.68
A76: 75 | B76: 台达电子（东莞）有限公司 | C76: 1.8
A77: 76 | B77: 东莞鹏龙光电有限公司 | C77: 0.55
A78: 77 | B78: 东莞市鼎力自动化科技有限公司 | C78: 0.78
A79: 78 | B79: 广东嘉尚新能源科技有限公司 | C79: 0.3
A80: 79 | B80: 东莞市佳迪新材料有限公司 | C80: 0.54
A81: 80 | B81: 广东嘉拓新能源科技有限公司 | C81: 0.15
A82: 81 | B82: 东莞村田电子有限公司 | C82: 1
A83: 82 | B83: 东莞市智宝实业有限公司 | C83: 1.03
A84: 83 | B84: 东莞汇乐技术股份有限公司 | C84: 1.65
A85: 84 | B85: 易事特集团股份有限公司 | C85: 1
A86: 85 | B86: 广东菲鹏生物有限公司 | C86: 1
A87: 86 | B87: 歌尔智能科技有限公司 | C87: 2.22
A88: 87 | B88: 东莞立讯技术有限公司 | C88: 4.4
A89: 88 | B89: 广东车卫士信息科技有限公司 | C89: 1.55
A90: 89 | B90: 广东高斯宝电气技术有限公司 | C90: 2
A91: 90 | B91: 广东红珊瑚药业有限公司 | C91: 1.37
A92: 91 | B92: 广东天域半导体股份有限公司 | C92: 1.2
A93: 92 | B93: 广东恒翼能科技股份有限公司 | C93: 3.75
A94: 93 | B94: 东莞阿尔泰显示技术有限公司 | C94: 2.32
A95: 94 | B95: 广东大普通信技术股份有限公司 | C95: 1.88
A96: 95 | B96: 广东东博智能装备股份有限公司 | C96: 4
A97: 96 | B97: 广东优力普物联科技有限公司 | C97: 0.97
A98: 97 | B98: 广东墨睿科技有限公司 | C98: 3.88
A99: 98 | B99: 广东找大状法务科技有限公司 | C99: 0.4
A100: 99 | B100: 广东思沃激光科技有限公司 | C100: 3
A101: 100 | B101: 东莞思沃智能装备有限公司 | C101: 1.25
A102: 101 | B102: 东莞市宏联电子有限公司 | C102: 1.41
A103: 102 | B103: 东莞市信彩包装有限公司 | C103: 0.94
A104: 103 | B104: 东莞市昱懋纳米科技有限公司 | C104: 2.68
A105: 104 | B105: 广东利扬芯片测试股份有限公司 | C105: 1.81
A106: 105 | B106: 东莞市诺丽科技股份有限公司 | C106: 3
A107: 106 | B107: 东莞市卓蓝自动化设备有限公司 | C107: 1.58
A108: 107 | B108: 东莞市立顿洗涤用品实业有限公司 | C108: 0.7
A109: 108 | B109: 东莞赛诺高德蚀刻科技有限公司 | C109: 2.01
A110: 109 | B110: 熵基科技（广东）有限公司 | C110: 1.68
A111: 110 | B111: 广东华汇智能装备股份有限公司 | C111: 2.86
A112: 111 | B112: 广东宏川集团有限公司 | C112: 8

Sheet 培训机构-发证机关（待确认） (hidden)
A1: 培训机构 | B1: 发证机构 | D1: 事务所认定情况
A2: 一、各大商学院
A3: 深圳市远大卓成管理咨询有限公司/惠州市远大企业管理咨询有限公司 | B3: 远大方略经营管理研究院 | D3: 未认可
A4: 广州时代华商人才培训股份有限公司 | B4: 时代华商商学研究院 | D4: 未认可
A5: 资本市场学院 | B5: 资本市场学院 | C5: 资本市场学院是由中国证监会和深圳市政府联合举办的资本市场专业性教育培训机构。 | D5: 已认可
A6: 中欧国际工商学院 | B6: 中欧国际工商学院 | D6: 已认可
A7: 北京先制科技有限公司 | B7: 先进制造商学院 | D7: 已认可
A8: 华路数字文化（深圳）有限公司 | B8: 深圳中财华路商学院（中央财经大学） | D8: 已认可
A9: 深圳华科喻园教育科技有限公司 | B9: 深圳华中科技大学研究院 | D9: 已认可
A10: 长江商学院 | B10: 长江商学院 | D10: 已认可
A11: 北京大学深圳研究生院 | B11: 北京大学汇丰商学院 | D11: 已认可
A12: 前海港大思培教育咨询（深圳）有限公司 | B12: 香港大学SPACE中国商业学院 | D12: 已认可
A13: 东莞市高薪教育咨询有限公司 | B13: 香港人力资源管理学院 | D13: 已认可
A14: 亚商在线（东莞）商学有限公司 | B14: 亚洲城市大学 | D14: 已认可
A15: 亚商在线（东莞）商学有限公司 | B15: 香港亚洲商学院 | D15: 已认可
A16: 清华大学五道口金融学院 | B16: 清华大学五道口金融学院 | D16: 已认可
A17: 二、国外大学、商学院
A18: 上海学畅企业发展有限公司 | B18: 西班牙穆尔西亚大学 | C18: 国际院校我们不是很了解，基本是和国内机构合作有授权，国内机构开发票，我们基本都认可了 | D18: 已认可
A19: 深圳市协进教育科技有限公司 | B19: 法国蔚蓝海岸大学（尼斯大学） | D19: 已认可
A20: 深圳市恩瑟帕斯文化咨询有限公司 | B20: 马来西亚林肯大学 | D20: 已认可
A21: 东莞理工学院 | B21: 西班牙马德里康普顿斯大学 | D21: 已认可
A22: Strayer University（美国斯特雷耶大学） | B22: Strayer University（美国斯特雷耶大学） | D22: 已认可
A23: 深圳市教育有限公司 | B23: 加拿大阿尔伯塔大学 | D23: 已认可
A24: 广州时代华商人才培训股份有限公司 | B24: 法国布雷斯特商学院 | D24: 已认可
A25: 亚商在线（东莞）商学有限公司/东方云（北京）教育科技发展集团有限公司 | B25: 欧洲塞万提斯大学 | D25: 已认可
A26: 汇承商学(广州)科教研究有限公司 | B26: 西班牙武康大学 | D26: 已认可
A27: 上海择藤教育科技有限公司 | B27: 沃顿商学院 | D27: 已认可
A28: 上海择藤教育科技有限公司 | B28: 哥伦比亚大学商学院&达特茅斯塔克商学院 | D28: 已认可
A29: 三、其他学院、研究院
A30: 北京绿巢联合环境技术研究院 | B30: 北京绿巢联合环境技术研究院 | C30: 环境总裁班 | D30: 未认可
A31: 广州市长青企业科技创新研究院 | B31: 广州市长青企业科技创新研究院 | C31: 万和供应链高质量发展高级研修班 | D31: 未认可
A32: 东莞市横沥智新职业培训学院 | B32: 东莞市横沥智新职业培训学院 | C32: 经营者素质提升训练营 | D32: 未认可
A33: 中测国证（北京）检验认证技术研究院 | B33: 中测国证（北京）检验认证技术研究院 | C33: CMA/CNAS内审员双资格证书 | D33: 已认可
A34: 仲恺农业工程学院 | B34: 仲恺农业工程学院 | D34: 已认可
